[Event "RUS-ch Girls U21 2021"]
[Site "Loo"]
[Date "2021.04.23"]
[Round "3.5"]
[White "Zotova, Anastasia"]
[Black "Serditykh, Olesya"]
[Result "1/2-1/2"]
[ECO "C15"]
[WhiteElo "2160"]
[BlackElo "1961"]
[Annotator "NA"]
[PlyCount "113"]
[EventDate "2021.04.21"]
[EventType "swiss"]
[EventCountry "RUS"]
[SourceTitle "playchess.com"]
[Source "ChessBase"]
[SourceQuality "1"]
[TimeControl "40/5400+30:1800+30"]

1. e4 {[%emt 0:00:00]} e6 {[%emt 0:00:00]} 2. d4 {[%emt 0:00:00]} d5 {[%emt 0:00:00]} 3. Nc3 {[%emt 0:00:00]} Bb4 {[%emt 0:00:00]} 4. exd5 {[%emt 0:00:00]} exd5 {[%emt 0:00:02]} 5. Qf3 {[%emt 0:00:00]} Ne7 {[%emt 0:09:03]} 6. Bd3 {[%emt 0:00:15]} Be6 {[%emt 0:05:22]} 7. Nge2 {[%emt 0:00:30]} Nbc6 {[%emt 0:03:03]} 8. Bf4 {[%emt 0:01:00]} Ng6 {[%emt 0:02:47]} 9. Bg3 {[%emt 0:02:50]} Qd7 {[%emt 0:03:36]} 10. Qe3 {[%emt 0:08:27]} O-O-O {[%emt 0:07:24]} 11. O-O-O {[%emt 0:01:10]} a6 {[%emt 0:02:01]} 12. a3 {[%emt 0:01:37]} Be7 {[%emt 0:06:36]} 13. Kb1 {[%emt 0:03:07]} Bf5 {[%emt 0:05:55]} 14. h4 {[%emt 0:03:10]} h5 {[%emt 0:01:35]} 15. Qf3 {[%emt 0:04:53]} Bxd3 {[%emt 0:00:33]} 16. Rxd3 {[%emt 0:04:58]} Bf6 {[%emt 0:07:52]} 17. Na4 {[%emt 0:06:18]} Qg4 {[%emt 0:04:58]} 18. Qxg4+ {[%emt 0:10:35]} hxg4 {[%emt 0:00:10]} 19. h5 {[%emt 0:00:16]} Nge7 {[%emt 0:01:30]} 20. Nc5 {[%emt 0:03:28]} Nf5 {[%emt 0:03:02]} 21. Rb3 {[%emt 0:04:00]} Na5 {[%emt 0:08:04]} 22. Rc3 {[%emt 0:02:56]} Nxd4 {[%emt 0:10:57]} 23. Nxd4 {[%emt 0:01:27]} Bxd4 {[%emt 0:00:06]} 24. Bxc7 {[%emt 0:00:07]} Bxc3 {[%emt 0:02:53]} 25. Bxd8 {[%emt 0:00:11]} Kxd8 {[%emt 0:02:23]} 26. bxc3 {[%emt 0:00:06]} Kc7 {[%emt 0:00:12]} 27. Rh4 {[%emt 0:00:24]} Kd6 {[%emt 0:00:44]} 28. Nb3 {[%emt 0:01:31]} Nxb3 {[%emt 0:00:58]} 29. cxb3 {[%emt 0:00:06]} f5 {[%emt 0:00:19]} 30. Kc2 {[%emt 0:00:06]} Ke5 {[%emt 0:01:13]} 31. Kd3 {[%emt 0:00:08]} Rh6 {[%emt 0:00:17]} 32. Rh1 {[%emt 0:00:47]} Kd6 {[%emt 0:01:10]} 33. Kd4 {[%emt 0:00:52]} Re6 {[%emt 0:00:17]} 34. f3 {[%emt 0:00:27]} f4 {[%emt 0:05:41]} 35. Rh4 {[%emt 0:01:04]} Re2 {[%emt 0:00:19]} 36. Kd3 {[%emt 0:01:06]} Re3+ {[%emt 0:04:01]} 37. Kd2 {[%emt 0:00:55]} gxf3 {[%emt 0:00:07]} 38. Rxf4 {[%emt 0:00:27]} fxg2 {[%emt 0:01:53]} 39. Rg4 {[%emt 0:00:10]} Rh3 {[%emt 0:00:10]} 40. Rxg2 {[%emt 0:00:00]} Rxh5 {[%emt 0:00:00]} 41. Rxg7 {[%emt 0:00:25]} Kc6 {[%emt 0:00:10]} 42. Re7 {[%emt 0:01:45]} Rh2+ {[%emt 0:01:26]} 43. Re2 {[%emt 0:00:06]} Rh3 {[%emt 0:00:29]} 44. Re3 {[%emt 0:00:24]} Rh2+ {[%emt 0:00:08]} 45. Kd3 {[%emt 0:02:02]} Rb2 {[%emt 0:00:23]} 46. b4 {[%emt 0:00:47]} Ra2 {[%emt 0:00:56]} 47. Kd4 {[%emt 0:00:19]} Rxa3 {[%emt 0:00:32]} 48. Re6+ {[%emt 0:00:12]} Kc7 {[%emt 0:01:39]} 49. Re5 {[%emt 0:00:16]} Ra1 {[%emt 0:00:51]} 50. Kxd5 {[%emt 0:00:26]} Rd1+ {[%emt 0:00:08]} 51. Kc4 {[%emt 0:00:22]} Kc6 {[%emt 0:00:49]} 52. Re6+ {[%emt 0:00:09]} Rd6 {[%emt 0:00:30]} 53. Rxd6+ {[%emt 0:01:47]} Kxd6 {[%emt 0:00:04]} 54. Kd4 {[%emt 0:00:20]} b6 {[%emt 0:00:23]} 55. c4 {[%emt 0:00:19]} a5 {[%emt 0:00:47]} 56. Kc3 {[%emt 0:00:32]} axb4+ {[%emt 0:00:17]} 57. Kxb4 {[%emt 0:00:05]} 1/2-1/2

[Event "RUS-ch Girls U21 2021"]
[Site "Loo"]
[Date "2021.04.23"]
[Round "3.7"]
[White "Shvedova, Alexandra"]
[Black "Bogdanova, Darya"]
[Result "1-0"]
[ECO "C50"]
[WhiteElo "2000"]
[BlackElo "1762"]
[Annotator "NA"]
[PlyCount "95"]
[EventDate "2021.04.21"]
[EventType "swiss"]
[EventCountry "RUS"]
[SourceTitle "playchess.com"]
[Source "ChessBase"]
[SourceQuality "1"]
[TimeControl "40/5400+30:1800+30"]

1. e4 {[%emt 0:00:00]} e5 {[%emt 0:00:00]} 2. Nf3 {[%emt 0:00:00]} Nc6 {[%emt 0:00:00]} 3. Bc4 {[%emt 0:00:00]} Bc5 {[%emt 0:00:00]} 4. O-O {[%emt 0:00:11]} Nf6 {[%emt 0:00:02]} 5. d3 {[%emt 0:00:05]} O-O {[%emt 0:00:18]} 6. c3 {[%emt 0:00:09]} d6 {[%emt 0:00:19]} 7. a4 {[%emt 0:00:15]} a6 {[%emt 0:00:13]} 8. Nbd2 {[%emt 0:00:30]} Be6 {[%emt 0:01:49]} 9. h3 {[%emt 0:02:50]} Re8 {[%emt 0:05:23]} 10. Re1 {[%emt 0:01:18]} Qd7 {[%emt 0:07:18]} 11. b4 {[%emt 0:10:45]} Bb6 {[%emt 0:03:56]} 12. Bb2 {[%emt 0:09:41]} Rad8 {[%emt 0:04:41]} 13. Qb3 {[%emt 0:03:18]} d5 {[%emt 0:04:16]} 14. exd5 {[%emt 0:00:58]} Bxd5 {[%emt 0:00:09]} 15. Rad1 {[%emt 0:08:01]} Qf5 {[%emt 0:13:38]} 16. Ne4 {[%emt 0:28:12]} Nxe4 {[%emt 0:13:48]} 17. dxe4 {[%emt 0:00:11]} Bxe4 {[%emt 0:00:08]} 18. Bxf7+ {[%emt 0:00:24]} Qxf7 {[%emt 0:01:03]} 19. Qxf7+ {[%emt 0:00:07]} Kxf7 {[%emt 0:00:05]} 20. Ng5+ {[%emt 0:00:07]} Kg8 {[%emt 0:00:21]} 21. Nxe4 {[%emt 0:00:07]} h6 {[%emt 0:14:03]} 22. Kf1 {[%emt 0:03:08]} Kf7 {[%emt 0:03:03]} 23. Nd2 {[%emt 0:02:56]} e4 {[%emt 0:03:57]} 24. Nc4 {[%emt 0:01:32]} Ba7 {[%emt 0:05:38]} 25. b5 {[%emt 0:05:14]} axb5 {[%emt 0:01:48]} 26. axb5 {[%emt 0:00:05]} Rxd1 {[%emt 0:01:49]} 27. Rxd1 {[%emt 0:00:04]} Ne5 {[%emt 0:00:08]} 28. Nxe5+ {[%emt 0:00:54]} Rxe5 {[%emt 0:00:02]} 29. c4 {[%emt 0:00:07]} Rf5 {[%emt 0:00:15]} 30. Bd4 {[%emt 0:00:17]} Bb8 {[%emt 0:06:10]} 31. Re1 {[%emt 0:00:54]} c5 {[%emt 0:01:52]} 32. g4 {[%emt 0:02:06]} Rg5 {[%emt 0:04:11]} 33. Be3 {[%emt 0:00:06]} Re5 {[%emt 0:00:06]} 34. Bf4 {[%emt 0:00:03]} Re8 {[%emt 0:00:05]} 35. Bxb8 {[%emt 0:00:04]} Rxb8 {[%emt 0:00:03]} 36. Rxe4 {[%emt 0:00:05]} Ra8 {[%emt 0:00:41]} 37. Ke2 {[%emt 0:08:47]} Ra1 {[%emt 0:00:34]} 38. h4 {[%emt 0:03:09]} Rc1 {[%emt 0:02:41]} 39. Ke3 {[%emt 0:01:42]} b6 {[%emt 0:01:40]} 40. Kf4 {[%emt 0:00:00]} Rh1 {[%emt 0:00:00]} 41. Ke5 {[%emt 0:02:43]} Rxh4 {[%emt 0:18:21]} 42. Kd6 {[%emt 0:00:08]} h5 {[%emt 0:00:21]} 43. Kc6 {[%emt 0:00:58]} hxg4 {[%emt 0:00:16]} 44. Kxb6 {[%emt 0:00:27]} g5 {[%emt 0:00:07]} 45. Re1 {[%emt 0:01:22]} g3 {[%emt 0:03:52]} 46. fxg3 {[%emt 0:00:05]} Rxc4 {[%emt 0:00:04]} 47. Re5 {[%emt 0:02:18]} Rg4 {[%emt 0:00:25]} 48. Kc7 {[%emt 0:01:36]} 1-0

[Event "RUS-ch Girls U21 2021"]
[Site "Loo"]
[Date "2021.04.23"]
[Round "3.9"]
[White "Gelman, Inna"]
[Black "Pankova, Julia"]
[Result "0-1"]
[ECO "A45"]
[WhiteElo "1801"]
[BlackElo "1884"]
[Annotator "NA"]
[PlyCount "78"]
[EventDate "2021.04.21"]
[EventType "swiss"]
[EventCountry "RUS"]
[SourceTitle "playchess.com"]
[Source "ChessBase"]
[SourceQuality "1"]
[TimeControl "40/5400+30:1800+30"]

1. d4 {[%emt 0:00:00]} Nf6 {[%emt 0:00:00]} 2. Bg5 {[%emt 0:00:00]} Ne4 {[%emt 0:00:12]} 3. Bh4 {[%emt 0:00:00]} c5 {[%emt 0:00:22]} 4. d5 {[%emt 0:03:48]} Qb6 {[%emt 0:07:14]} 5. Qc1 {[%emt 0:00:35]} Na6 {[%emt 0:03:02]} 6. c3 {[%emt 0:01:02]} Nc7 {[%emt 0:04:03]} 7. f3 {[%emt 0:00:36]} g5 {[%emt 0:02:11]} 8. fxe4 {[%emt 0:00:12]} gxh4 {[%emt 0:00:05]} 9. Nd2 {[%emt 0:02:26]} Bh6 {[%emt 0:01:57]} 10. Qc2 {[%emt 0:03:44]} Qg6 {[%emt 0:00:44]} 11. O-O-O {[%emt 0:02:31]} d6 {[%emt 0:09:08]} 12. Ngf3 {[%emt 0:02:04]} Qh5 {[%emt 0:01:03]} 13. Kb1 {[%emt 0:03:43]} b5 {[%emt 0:01:44]} 14. c4 {[%emt 0:05:42]} Rb8 {[%emt 0:08:59]} 15. e5 {[%emt 0:00:56]} O-O {[%emt 0:14:06]} 16. exd6 {[%emt 0:04:27]} exd6 {[%emt 0:00:34]} 17. e4 {[%emt 0:00:19]} Bg7 {[%emt 0:06:46]} 18. Bd3 {[%emt 0:03:58]} bxc4 {[%emt 0:04:22]} 19. Nxc4 {[%emt 0:00:08]} Ba6 {[%emt 0:01:03]} 20. b3 {[%emt 0:00:16]} Nb5 {[%emt 0:04:06]} 21. Rde1 {[%emt 0:03:39]} Nc3+ {[%emt 0:04:10]} 22. Kc1 {[%emt 0:00:11]} Qh6+ {[%emt 0:01:08]} 23. Nfd2 {[%emt 0:01:36]} Nb5 {[%emt 0:01:56]} 24. Re3 {[%emt 0:06:03]} Nd4 {[%emt 0:04:19]} 25. Qd1 {[%emt 0:00:09]} Rb4 {[%emt 0:02:25]} 26. Rh3 {[%emt 0:02:42]} Rfb8 {[%emt 0:07:31]} 27. g3 {[%emt 0:06:06]} Nxb3+ {[%emt 0:03:58]} 28. axb3 {[%emt 0:00:08]} Rxb3 {[%emt 0:00:14]} 29. Rxh4 {[%emt 0:02:14]} Rc3+ {[%emt 0:02:16]} 30. Bc2 {[%emt 0:00:11]} Qf6 {[%emt 0:01:10]} 31. e5 {[%emt 0:17:43]} Qg5 {[%emt 0:00:26]} 32. Rg4 {[%emt 0:07:53]} Qf5 {[%emt 0:01:22]} 33. Rf4 {[%emt 0:01:37]} Qd7 {[%emt 0:00:28]} 34. Nb1 {[%emt 0:01:49]} Rxc4 {[%emt 0:00:35]} 35. Qd3 {[%emt 0:06:11]} Rxf4 {[%emt 0:01:10]} 36. Qxh7+ {[%emt 0:00:06]} Kf8 {[%emt 0:00:00]} 37. gxf4 {[%emt 0:00:10]} Qb5 {[%emt 0:00:54]} 38. Nc3 {[%emt 0:06:56]} Qb4 {[%emt 0:00:33]} 39. Ne4 {[%emt 0:03:13]} Qb2+ {[%emt 0:00:17]} 0-1

[Event "RUS-ch Girls U21 2021"]
[Site "Loo"]
[Date "2021.04.23"]
[Round "3.10"]
[White "Emelyanova, Victoria"]
[Black "Stroganova, Karina"]
[Result "0-1"]
[ECO "D02"]
[WhiteElo "1765"]
[BlackElo "1731"]
[Annotator "NA"]
[PlyCount "80"]
[EventDate "2021.04.21"]
[EventType "swiss"]
[EventCountry "RUS"]
[SourceTitle "playchess.com"]
[Source "ChessBase"]
[SourceQuality "1"]
[TimeControl "40/5400+30:1800+30"]

1. d4 {[%emt 0:00:00]} d5 {[%emt 0:00:00]} 2. Nf3 {[%emt 0:00:00]} Nf6 {[%emt 0:00:00]} 3. Bf4 {[%emt 0:00:08]} Bf5 {[%emt 0:00:13]} 4. c4 {[%emt 0:01:04]} e6 {[%emt 0:00:09]} 5. Nc3 {[%emt 0:01:28]} Bd6 {[%emt 0:01:24]} 6. Bg3 {[%emt 0:03:37]} O-O {[%emt 0:01:13]} 7. Nh4 {[%emt 0:06:23]} Bg4 {[%emt 0:02:26]} 8. c5 {[%emt 0:05:48]} Be7 {[%emt 0:01:31]} 9. h3 {[%emt 0:02:17]} Bh5 {[%emt 0:00:33]} 10. Nf3 {[%emt 0:02:26]} b6 {[%emt 0:05:49]} 11. b4 {[%emt 0:09:03]} Nc6 {[%emt 0:01:52]} 12. Qa4 {[%emt 0:06:50]} Qd7 {[%emt 0:02:51]} 13. e3 {[%emt 0:15:14]} a6 {[%emt 0:03:50]} 14. Be2 {[%emt 0:06:19]} b5 {[%emt 0:15:24]} 15. Qb3 {[%emt 0:02:19]} Ne4 {[%emt 0:02:40]} 16. Nxe4 {[%emt 0:07:29]} dxe4 {[%emt 0:00:07]} 17. Ne5 {[%emt 0:02:09]} Nxe5 {[%emt 0:00:12]} 18. Bxh5 {[%emt 0:01:59]} Nd3+ {[%emt 0:00:40]} 19. Kd2 {[%emt 0:02:49]} a5 {[%emt 0:01:22]} 20. a3 {[%emt 0:02:30]} e5 {[%emt 0:00:34]} 21. Bg4 {[%emt 0:01:47]} Qd8 {[%emt 0:00:38]} 22. d5 {[%emt 0:09:24]} f5 {[%emt 0:18:48]} 23. Be2 {[%emt 0:01:50]} f4 {[%emt 0:00:16]} 24. Bxd3 {[%emt 0:02:52]} fxg3 {[%emt 0:01:10]} 25. Bxe4 {[%emt 0:02:50]} a4 {[%emt 0:03:32]} 26. Qd3 {[%emt 0:01:32]} Rxf2+ {[%emt 0:01:09]} 27. Kc3 {[%emt 0:01:14]} Bxc5 {[%emt 0:06:27]} 28. bxc5 c6 {[%emt 0:00:06]} 29. Rab1 {[%emt 0:02:37]} Qe7 {[%emt 0:01:26]} 30. d6 {[%emt 0:00:20]} Qa7 {[%emt 0:00:10]} 31. Bd5+ {[%emt 0:00:29]} Kh8 {[%emt 0:00:45]} 32. Bc4 {[%emt 0:00:41]} Qxc5 {[%emt 0:00:37]} 33. Rb4 {[%emt 0:00:27]} Ra2 {[%emt 0:00:52]} 34. Ra1 {[%emt 0:00:33]} Rxa1 {[%emt 0:00:14]} 35. Kb2 {[%emt 0:00:03]} Rg1 {[%emt 0:01:48]} 36. d7 {[%emt 0:00:39]} Rd8 {[%emt 0:00:10]} 37. e4 {[%emt 0:00:49]} Rxg2+ {[%emt 0:00:42]} 38. Ka1 {[%emt 0:00:13]} bxc4 {[%emt 0:00:23]} 39. Rb8 {[%emt 0:00:45]} Qg1+ {[%emt 0:00:20]} 40. Qb1 {[%emt 0:00:00]} Rxb8 {[%emt 0:00:00]} 0-1

[Event "RUS-ch Girls U21 2021"]
[Site "Loo"]
[Date "2021.04.24"]
[Round "4.1"]
[White "Afonasieva, Anna"]
[Black "Sakorenko, Adriana"]
[Result "1-0"]
[ECO "D00"]
[WhiteElo "2270"]
[BlackElo "2216"]
[Annotator "NA"]
[PlyCount "59"]
[EventDate "2021.04.21"]
[EventType "swiss"]
[EventCountry "RUS"]
[SourceTitle "playchess.com"]
[Source "ChessBase"]
[SourceQuality "1"]
[TimeControl "40/5400+30:1800+30"]

1. d4 {[%emt 0:00:00]} d5 {[%emt 0:00:00]} 2. Bf4 {[%emt 0:00:00]} e6 {[%emt 0:00:00]} 3. e3 {[%emt 0:00:00]} Bd6 {[%emt 0:00:00]} 4. Bg3 {[%emt 0:00:00]} Nf6 {[%emt 0:00:41]} 5. Nd2 {[%emt 0:00:24]} c5 {[%emt 0:00:20]} 6. c3 {[%emt 0:00:07]} Qc7 {[%emt 0:00:43]} 7. dxc5 {[%emt 0:00:33]} Bxg3 {[%emt 0:02:47]} 8. hxg3 {[%emt 0:00:08]} Qxc5 {[%emt 0:00:06]} 9. Ngf3 {[%emt 0:00:38]} Nc6 {[%emt 0:00:37]} 10. Bd3 {[%emt 0:01:11]} Bd7 {[%emt 0:07:26]} 11. Qe2 {[%emt 0:01:40]} h6 {[%emt 0:02:30]} 12. Rd1 {[%emt 0:02:11]} Qb6 {[%emt 0:06:11]} 13. b4 {[%emt 0:05:04]} a6 {[%emt 0:04:56]} 14. e4 {[%emt 0:03:50]} dxe4 {[%emt 0:03:13]} 15. Nxe4 {[%emt 0:00:31]} Nxe4 {[%emt 0:00:09]} 16. Bxe4 {[%emt 0:00:26]} Qc7 {[%emt 0:04:17]} 17. O-O {[%emt 0:02:12]} Rd8 {[%emt 0:04:09]} 18. Qe3 {[%emt 0:06:01]} O-O {[%emt 0:04:29]} 19. g4 {[%emt 0:01:22]} f5 {[%emt 0:08:44]} 20. Bxc6 {[%emt 0:12:53]} bxc6 {[%emt 0:00:05]} 21. Qe5 {[%emt 0:02:33]} Qb6 {[%emt 0:05:07]} 22. g5 {[%emt 0:06:21]} Bc8 {[%emt 0:03:51]} 23. gxh6 {[%emt 0:12:05]} gxh6 {[%emt 0:00:21]} 24. Rd4 {[%emt 0:00:20]} Kh7 {[%emt 0:08:20]} 25. Rh4 {[%emt 0:04:37]} Rd5 {[%emt 0:01:44]} 26. Qg3 {[%emt 0:04:20]} Rf6 {[%emt 0:02:41]} 27. Ng5+ {[%emt 0:06:02]} Kh8 {[%emt 0:00:24]} 28. c4 {[%emt 0:00:32]} f4 {[%emt 0:04:36]} 29. Nf7+ {[%emt 0:01:39]} Kh7 {[%emt 0:03:14]} 30. Qh3 {[%emt 0:02:35]} 1-0

[Event "RUS-ch Girls U21 2021"]
[Site "Loo"]
[Date "2021.04.24"]
[Round "4.2"]
[White "Goltseva, Ekaterina"]
[Black "Nosacheva, Mariya"]
[Result "1/2-1/2"]
[ECO "E91"]
[WhiteElo "2269"]
[BlackElo "2199"]
[Annotator "NA"]
[PlyCount "49"]
[EventDate "2021.04.21"]
[EventType "swiss"]
[EventCountry "RUS"]
[SourceTitle "playchess.com"]
[Source "ChessBase"]
[SourceQuality "1"]
[TimeControl "40/5400+30:1800+30"]

1. d4 {[%emt 0:00:00]} Nf6 {[%emt 0:00:00]} 2. c4 {[%emt 0:00:00]} g6 {[%emt 0:00:00]} 3. Nc3 {[%emt 0:00:00]} Bg7 {[%emt 0:00:00]} 4. e4 {[%emt 0:00:02]} d6 {[%emt 0:00:00]} 5. Nf3 {[%emt 0:00:04]} O-O {[%emt 0:00:03]} 6. Be2 {[%emt 0:00:06]} Na6 {[%emt 0:00:08]} 7. O-O {[%emt 0:00:20]} e5 {[%emt 0:00:45]} 8. Re1 {[%emt 0:00:45]} exd4 {[%emt 0:04:42]} 9. Nxd4 {[%emt 0:00:47]} Nc5 {[%emt 0:00:08]} 10. Bf1 {[%emt 0:07:45]} a5 {[%emt 0:00:47]} 11. Ndb5 {[%emt 0:05:20]} Bd7 {[%emt 0:09:38]} 12. f3 {[%emt 0:09:16]} Nh5 {[%emt 0:07:53]} 13. g4 {[%emt 0:11:11]} Bxb5 {[%emt 0:04:09]} 14. cxb5 {[%emt 0:07:13]} Nf6 {[%emt 0:00:21]} 15. Be3 {[%emt 0:05:20]} Nfd7 {[%emt 0:03:37]} 16. Qd2 {[%emt 0:20:24]} Ne5 {[%emt 0:02:37]} 17. Be2 {[%emt 0:04:30]} Re8 {[%emt 0:00:32]} 18. Rad1 {[%emt 0:01:51]} Ned7 {[%emt 0:15:10]} 19. Nd5 {[%emt 0:02:38]} c6 {[%emt 0:03:14]} 20. Nc3 {[%emt 0:01:32]} Be5 {[%emt 0:00:09]} 21. Bf1 {[%emt 0:04:20]} Qf6 {[%emt 0:06:22]} 22. Bg2 {[%emt 0:02:56]} Qh4 {[%emt 0:00:13]} 23. Bf1 {[%emt 0:04:09]} Qf6 {[%emt 0:00:16]} 24. Bg2 {[%emt 0:01:15]} Qh4 {[%emt 0:00:06]} 25. Bf1 {[%emt 0:00:04]} 1/2-1/2

[Event "RUS-ch Girls U21 2021"]
[Site "Loo"]
[Date "2021.04.24"]
[Round "4.3"]
[White "Nasyrova, Ekaterina"]
[Black "Shvedova, Alexandra"]
[Result "1-0"]
[ECO "D31"]
[WhiteElo "2273"]
[BlackElo "2000"]
[Annotator "NA"]
[PlyCount "109"]
[EventDate "2021.04.21"]
[EventType "swiss"]
[EventCountry "RUS"]
[SourceTitle "playchess.com"]
[Source "ChessBase"]
[SourceQuality "1"]
[TimeControl "40/5400+30:1800+30"]

1. d4 {[%emt 0:00:00]} d5 {[%emt 0:00:00]} 2. c4 {[%emt 0:00:00]} e6 {[%emt 0:00:00]} 3. Nc3 {[%emt 0:00:00]} Be7 {[%emt 0:00:00]} 4. cxd5 exd5 {[%emt 0:00:00]} 5. Bf4 {[%emt 0:00:17]} Nf6 {[%emt 0:00:09]} 6. e3 {[%emt 0:00:14]} O-O {[%emt 0:00:09]} 7. Bd3 {[%emt 0:00:22]} c5 {[%emt 0:00:46]} 8. Nge2 {[%emt 0:00:33]} Nc6 {[%emt 0:00:36]} 9. O-O {[%emt 0:00:32]} h6 {[%emt 0:11:16]} 10. dxc5 {[%emt 0:01:57]} Bxc5 {[%emt 0:00:08]} 11. Rc1 {[%emt 0:00:21]} Bd6 {[%emt 0:18:56]} 12. Bxd6 {[%emt 0:11:43]} Qxd6 {[%emt 0:00:06]} 13. Nb5 {[%emt 0:00:25]} Qe7 {[%emt 0:00:15]} 14. Nbd4 {[%emt 0:04:11]} Nxd4 {[%emt 0:10:06]} 15. Nxd4 {[%emt 0:00:23]} Bg4 {[%emt 0:00:16]} 16. Qa4 {[%emt 0:01:45]} Bd7 {[%emt 0:19:16]} 17. Qb3 {[%emt 0:02:08]} Qd6 {[%emt 0:02:15]} 18. h3 {[%emt 0:13:19]} b6 {[%emt 0:03:35]} 19. Rc2 {[%emt 0:09:43]} Rfe8 {[%emt 0:04:40]} 20. Nb5 {[%emt 0:15:22]} Bxb5 {[%emt 0:00:54]} 21. Bxb5 {[%emt 0:00:09]} Rec8 {[%emt 0:00:17]} 22. Rd2 {[%emt 0:02:35]} Rc5 {[%emt 0:03:49]} 23. Rfd1 {[%emt 0:02:02]} Rac8 {[%emt 0:01:53]} 24. Rd4 {[%emt 0:13:09]} Qc7 {[%emt 0:05:05]} 25. Ba6 {[%emt 0:07:21]} Rd8 {[%emt 0:00:54]} 26. Be2 {[%emt 0:00:13]} Rc1 {[%emt 0:01:37]} 27. Bf3 {[%emt 0:00:39]} Rd7 {[%emt 0:00:53]} 28. g3 {[%emt 0:01:24]} Rxd1+ {[%emt 0:00:49]} 29. Qxd1 {[%emt 0:00:09]} Qc6 {[%emt 0:00:15]} 30. h4 {[%emt 0:02:18]} Qe6 {[%emt 0:02:18]} 31. Kg2 {[%emt 0:00:44]} Qe5 {[%emt 0:01:10]} 32. a4 {[%emt 0:03:29]} h5 {[%emt 0:01:54]} 33. b4 {[%emt 0:01:02]} g6 {[%emt 0:01:12]} 34. Qd3 {[%emt 0:01:19]} Kg7 {[%emt 0:01:38]} 35. Qb5 {[%emt 0:00:41]} Qe6 {[%emt 0:00:22]} 36. a5 bxa5 {[%emt 0:01:56]} 37. bxa5 {[%emt 0:01:46]} Rd6 {[%emt 0:05:24]} 38. Qc5 {[%emt 0:01:23]} Rd7 {[%emt 0:00:31]} 39. Qc3 {[%emt 0:03:09]} Qe8 {[%emt 0:01:30]} 40. Qd2 {[%emt 0:00:00]} Qe6 {[%emt 0:00:00]} 41. Qd3 {[%emt 0:04:58]} Qc6 {[%emt 0:03:13]} 42. Rb4 {[%emt 0:03:20]} Qc5 {[%emt 0:08:52]} 43. Rb5 {[%emt 0:02:40]} Qd6 {[%emt 0:00:20]} 44. Qd4 {[%emt 0:00:39]} Kh7 {[%emt 0:02:03]} 45. Rc5 {[%emt 0:01:04]} Rd8 {[%emt 0:01:36]} 46. Rc3 {[%emt 0:00:58]} Qe7 {[%emt 0:01:34]} 47. Rb3 {[%emt 0:01:57]} Rd7 {[%emt 0:09:25]} 48. Rb8 {[%emt 0:02:32]} Kg7 {[%emt 0:01:23]} 49. a6 {[%emt 0:02:41]} Rd6 {[%emt 0:05:27]} 50. Rb7 {[%emt 0:05:32]} Qe6 {[%emt 0:00:11]} 51. Be2 {[%emt 0:00:58]} Rd7 {[%emt 0:02:19]} 52. Qxa7 {[%emt 0:01:59]} Qe4+ {[%emt 0:01:09]} 53. Bf3 {[%emt 0:00:14]} Qe6 {[%emt 0:00:14]} 54. Rxd7 {[%emt 0:00:42]} Nxd7 {[%emt 0:00:05]} 55. Qd4+ {[%emt 0:00:48]} 1-0

[Event "RUS-ch Girls U21 2021"]
[Site "Loo"]
[Date "2021.04.24"]
[Round "4.4"]
[White "Shafigullina, Zarina"]
[Black "Serditykh, Olesya"]
[Result "1-0"]
[ECO "E09"]
[WhiteElo "2293"]
[BlackElo "1961"]
[Annotator "NA"]
[PlyCount "113"]
[EventDate "2021.04.21"]
[EventType "swiss"]
[EventCountry "RUS"]
[SourceTitle "playchess.com"]
[Source "ChessBase"]
[SourceQuality "1"]
[TimeControl "40/5400+30:1800+30"]

1. d4 {[%emt 0:00:00]} d5 {[%emt 0:00:00]} 2. c4 {[%emt 0:00:00]} e6 {[%emt 0:00:00]} 3. Nf3 {[%emt 0:00:00]} Nf6 {[%emt 0:00:00]} 4. g3 {[%emt 0:00:00]} Be7 {[%emt 0:00:00]} 5. Bg2 {[%emt 0:00:00]} O-O {[%emt 0:00:07]} 6. Qc2 {[%emt 0:00:01]} c6 {[%emt 0:00:43]} 7. O-O {[%emt 0:00:10]} Nbd7 {[%emt 0:00:39]} 8. Nbd2 {[%emt 0:00:34]} b6 {[%emt 0:00:32]} 9. e4 {[%emt 0:00:20]} dxe4 {[%emt 0:03:53]} 10. Nxe4 {[%emt 0:00:05]} Bb7 {[%emt 0:00:12]} 11. Rd1 {[%emt 0:00:31]} Qc8 {[%emt 0:02:08]} 12. Nc3 {[%emt 0:12:35]} Rd8 {[%emt 0:05:31]} 13. Bf4 {[%emt 0:05:08]} Nf8 {[%emt 0:04:26]} 14. Ne5 {[%emt 0:03:21]} Ng6 {[%emt 0:01:24]} 15. Nxg6 {[%emt 0:02:34]} hxg6 {[%emt 0:00:10]} 16. Bh3 {[%emt 0:02:03]} Rd7 {[%emt 0:09:02]} 17. Rd2 {[%emt 0:11:18]} Qf8 {[%emt 0:13:12]} 18. a3 {[%emt 0:03:26]} Rad8 {[%emt 0:03:03]} 19. Rad1 {[%emt 0:02:06]} Ne8 {[%emt 0:09:03]} 20. Qa4 {[%emt 0:09:10]} Ba8 {[%emt 0:03:00]} 21. Bg2 {[%emt 0:05:00]} Bf6 {[%emt 0:03:48]} 22. Bxc6 {[%emt 0:14:14]} Bxc6 {[%emt 0:00:13]} 23. Qxc6 {[%emt 0:00:04]} Rxd4 {[%emt 0:09:10]} 24. Nb5 {[%emt 0:04:12]} Rxd2 {[%emt 0:05:04]} 25. Rxd2 {[%emt 0:00:06]} Rxd2 {[%emt 0:00:42]} 26. Bxd2 {[%emt 0:00:05]} Qe7 {[%emt 0:00:15]} 27. Bb4 {[%emt 0:15:53]} Qd8 {[%emt 0:00:10]} 28. Nxa7 {[%emt 0:01:53]} Bxb2 {[%emt 0:00:49]} 29. Qc8 {[%emt 0:03:03]} Bf6 {[%emt 0:03:37]} 30. Qxd8 {[%emt 0:01:00]} Bxd8 {[%emt 0:00:12]} 31. Nc6 {[%emt 0:00:09]} Bf6 {[%emt 0:02:08]} 32. c5 {[%emt 0:02:18]} bxc5 {[%emt 0:00:37]} 33. Bxc5 {[%emt 0:00:03]} Nc7 {[%emt 0:00:27]} 34. Kf1 {[%emt 0:00:58]} Bc3 {[%emt 0:01:42]} 35. Ke2 {[%emt 0:00:45]} f6 {[%emt 0:00:42]} 36. Kd3 {[%emt 0:01:07]} Be1 {[%emt 0:00:13]} 37. Ke2 {[%emt 0:00:10]} Bc3 {[%emt 0:00:08]} 38. Kd3 {[%emt 0:00:45]} Be1 {[%emt 0:00:06]} 39. a4 {[%emt 0:00:09]} Kf7 {[%emt 0:00:24]} 40. Ke2 {[%emt 0:00:00]} Bc3 41. Kd3 {[%emt 0:23:36]} Be1 {[%emt 0:00:24]} 42. f4 {[%emt 0:00:32]} Ke8 {[%emt 0:01:48]} 43. Nd4 {[%emt 0:02:32]} Kd7 {[%emt 0:01:31]} 44. Nf3 {[%emt 0:01:06]} Ba5 {[%emt 0:00:08]} 45. Nh4 {[%emt 0:00:13]} Na6 {[%emt 0:02:26]} 46. Bf8 {[%emt 0:01:23]} Bb6 {[%emt 0:01:55]} 47. Kc4 {[%emt 0:00:37]} Kc6 {[%emt 0:00:25]} 48. Nxg6 {[%emt 0:01:28]} Bg1 {[%emt 0:00:14]} 49. h3 {[%emt 0:00:19]} Nc5 {[%emt 0:00:41]} 50. Bxg7 {[%emt 0:01:23]} Nxa4 {[%emt 0:00:35]} 51. h4 {[%emt 0:01:11]} Nb6+ {[%emt 0:00:49]} 52. Kd3 {[%emt 0:00:17]} Nc8 {[%emt 0:01:18]} 53. h5 {[%emt 0:00:53]} Nd6 {[%emt 0:00:08]} 54. h6 {[%emt 0:00:11]} Nf7 {[%emt 0:00:06]} 55. h7 {[%emt 0:00:28]} Bh2 {[%emt 0:01:30]} 56. Bxf6 {[%emt 0:00:28]} Bxg3 {[%emt 0:00:41]} 57. Ne5+ {[%emt 0:00:07]} 1-0